bitfinex/quotes_ETHUSD_20220212
["timestamp","ask_amount","ask_price","bid_price","bid_amount"]
[1644659912221,0.82481684,2941.0,2940.7,1.20627466]
[1644659912760,0.82481684,2941.0,2940.7,1.03627466]
[1644659913170,1.29753891,2941.2,2940.7,0.03627466]
[1644659913362,0.001,2941.1,2940.7,0.03627466]
[1644659913564,1.29753891,2941.1,2940.7,0.03627466]
[1644659913761,0.001,2941.0,2940.7,0.03627466]
[1644659914262,0.00494579,2941.0,2940.7,0.03627466]
[1644659914463,0.0012028,2940.9,2940.7,0.03627466]
[1644659915668,0.0012028,2940.9,2940.6,1.43422084]
[1644659916310,0.0012028,2940.9,2940.6,1.42518]
[1644659916513,0.0012028,2940.9,2940.6,1.43422075]
[1644659917616,0.0012028,2940.9,2940.6,1.42518]
[1644659917815,0.0012028,2940.9,2940.6,1.43422075]
[1644659918818,0.0012028,2940.9,2940.6,1.42518]
[1644659919018,0.0012028,2940.9,2940.6,1.43422075]
[1644659919618,0.00494579,2941.0,2940.6,1.43422075]
[1644659920058,0.00494579,2941.0,2940.6,1.42518]
[1644659920258,0.00494579,2941.0,2940.8,0.02542422]
[1644659920458,0.001,2941.0,2940.8,0.02542422]
[1644659920867,0.86700249,2941.0,2940.9,0.8502547]
[1644659921261,0.86700249,2941.1,2940.9,0.8502547]
[1644659921459,0.87604185,2941.1,2940.8,0.02542422]
[1644659922261,0.86700249,2941.1,2940.8,0.02542422]
[1644659922662,0.87604194,2941.1,2940.8,0.02542422]
[1644659922861,0.87998232,2941.1,2940.8,0.02542422]
[1644659923266,0.86700249,2940.9,2940.8,0.02542422]
[1644659923472,0.01297983,2941.1,2940.8,0.02542422]
[1644659923473,0.86800249,2941.1,2940.8,0.02542422]
[1644659923721,0.87998232,2941.1,2940.8,0.02542422]
[1644659924720,0.87094287,2941.1,2940.8,0.02542422]
[1644659924918,0.87998232,2941.1,2940.8,0.02542422]
[1644659925617,0.87998232,2941.1,2940.7,3.0810606]
[1644659925818,0.87998232,2941.1,2940.9,0.850253]
[1644659926028,0.001,2941.2,2940.9,0.850253]
[1644659926029,0.00494038,2941.2,2941.0,5.24206438]
[1644659926221,0.00394038,2941.3,2941.1,4.57001174]
[1644659926418,0.86700249,2941.4,2941.1,3.12327909]
[1644659926618,0.86700249,2941.4,2941.2,1.0]
[1644659926818,0.86700249,2941.4,2941.0,2.06255081]
[1644659927119,0.00494038,2941.5,2941.1,1.44673042]
[1644659927120,0.86700249,2941.3,2941.1,1.44673042]
[1644659927966,0.86700249,2941.3,2941.0,2.06255081]
[1644659928365,0.86700249,2941.3,2941.1,3.0739107]
[1644659928572,0.87604185,2941.3,2941.1,3.0739107]
[1644659929468,0.86700249,2941.3,2941.1,3.0739107]
[1644659929668,0.86700249,2941.4,2941.0,2.06255081]
[1644659929869,0.87604179,2941.3,2941.0,1.0]
[1644659930272,0.87604179,2941.3,2940.8,1.85021]
[1644659930470,0.86700249,2941.2,2940.9,1.44681725]
[1644659930669,0.86700249,2941.2,2940.8,0.85021]
[1644659930871,0.87094287,2941.2,2940.9,1.44681805]
[1644659931075,0.87604197,2941.2,2940.9,1.44681805]
[1644659931318,0.00903948,2941.2,2940.9,4.51037226]
[1644659931517,0.00903948,2941.2,2940.9,3.0790832]
[1644659931717,0.00903948,2941.2,2941.0,1.0]
[1644659932019,0.87094287,2941.3,2941.0,1.0]
[1644659932218,0.00903948,2941.2,2940.7,4.58005001]
[1644659932417,0.00903948,2941.2,2940.8,1.44681143]
[1644659933216,0.87094287,2941.3,2940.8,1.44681143]
[1644659933416,0.00903954,2941.1,2940.8,1.44681143]
[1644659933818,0.00360257,2941.1,2940.8,1.44681143]
[1644659934218,0.00360257,2941.2,2940.8,1.44681143]
[1644659934419,0.87060506,2941.3,2940.8,1.44681143]
[1644659935472,0.87060506,2941.3,2941.0,0.02224448]
[1644659937068,0.87605029,2941.3,2941.0,0.02224448]
[1644659937269,0.87244772,2941.3,2941.0,0.02224448]
[1644659937870,0.86700249,2941.3,2941.0,1.02224448]
[1644659938069,0.86700249,2941.3,2941.0,0.02224448]
[1644659938269,0.87604185,2941.3,2941.0,1.02224448]
[1644659938468,0.87604185,2941.3,2941.0,0.02224448]
[1644659939118,0.86700249,2941.3,2941.0,0.02224448]
[1644659939421,0.87604185,2941.3,2941.0,0.02224448]
[1644659939819,0.87604185,2941.3,2941.0,1.02224448]
[1644659940419,0.86700249,2941.3,2941.0,1.0]
[1644659940620,0.87604185,2941.3,2941.0,1.0]
[1644659941023,0.00903936,2941.3,2941.0,1.0]
[1644659942664,0.86700249,2941.4,2941.0,1.0]
[1644659942864,0.86700249,2941.4,2940.9,0.02290148]
[1644659943065,0.87604185,2941.3,2940.9,0.03194205]
[1644659943263,0.87964442,2941.3,2940.9,0.03194205]
[1644659943869,0.82060506,2941.4,2941.0,1.44673696]
[1644659944076,0.82060506,2941.5,2941.1,5.15059726]
[1644659944271,0.00903942,2941.2,2941.1,5.15059726]
[1644659945068,0.82060506,2941.5,2941.1,3.15059726]
[1644659945470,0.00903936,2941.3,2941.1,3.15059726]
[1644659945670,0.00903936,2941.3,2941.1,3.17284089]
[1644659945872,0.00903936,2941.3,2941.1,0.02224363]
[1644659946070,0.00903936,2941.3,2941.1,3.11113759]
[1644659946314,0.82060506,2941.5,2941.1,0.02224363]
[1644659946513,0.82060506,2941.5,2941.1,3.10126311]
[1644659946720,0.0090393,2941.3,2941.1,0.02224363]
[1644659947519,0.82060506,2941.5,2941.1,0.02224363]
[1644659947716,0.0090393,2941.3,2941.1,0.02224363]
[1644659948718,0.001,2941.6,2941.1,0.02224363]
[1644659948919,0.0090393,2941.3,2941.1,0.02224363]
[1644659949963,1.29753891,2941.6,2941.1,0.02224363]
[1644659950168,0.0090393,2941.3,2941.1,0.02224363]
[1644659950367,0.0090393,2941.3,2940.9,0.00904066]
[1644659951168,0.05224,2941.5,2940.8,0.0223194]
[1644659951368,0.00903942,2941.2,2940.9,1.45580112]
[1644659951567,0.00903942,2941.2,2941.0,4.62135641]
[1644659951770,0.00903942,2941.2,2941.1,3.14556277]
[1644659951972,0.00903942,2941.2,2940.9,0.00904048]
[1644659952372,0.00903942,2941.2,2940.8,0.0223194]
[1644659952373,1.29753891,2941.2,2940.8,0.0223194]
[1644659952569,5.22160342,2941.5,2940.8,0.0223194]
[1644659952570,1.34877891,2941.1,2940.8,0.0223194]
[1644659952771,0.492,2941.0,2940.9,0.00904039]
[1644659952974,0.54324,2941.0,2940.9,0.00904039]
[1644659953569,0.54324,2941.0,2940.8,0.0223194]
[1644659953824,0.05124,2940.9,2940.8,0.0223194]
[1644659954027,0.54224,2940.9,2940.8,0.0223194]
[1644659954826,0.54324,2940.9,2940.8,0.0223194]
[1644659955230,4.09345944,2940.9,2940.8,0.0223194]
[1644659955431,5.81506286,2940.9,2940.8,0.01348989]
[1644659955625,3.11134342,2940.9,2940.0,0.5]
[1644659955826,0.86585493,2940.3,2940.0,0.5]
[1644659956026,0.86585493,2940.3,2940.0,0.25]
[1644659956229,0.62861945,2940.1,2940.0,0.25]
[1644659957236,1.54571438,2940.1,2940.0,0.25]
[1644659957473,1.54571438,2940.1,2939.2,0.25]
[1644659957474,3.25,2939.9,2939.2,0.25]
[1644659957676,0.001,2939.8,2938.9,0.20615491]
[1644659957973,0.001,2939.8,2939.0,1.44748468]
[1644659957974,0.491,2939.7,2939.0,1.44748468]
[1644659958171,0.05124,2939.6,2939.0,1.44748468]
[1644659958574,0.05124,2939.6,2939.1,1.44748468]
[1644659958774,0.05124,2939.6,2939.2,1.44748468]
[1644659958973,0.491,2939.7,2938.6,2.2345]
[1644659959173,0.491,2939.7,2938.8,0.85086]
[1644659959371,0.241,2939.7,2938.9,1.44746741]
[1644659960173,0.241,2939.7,2938.9,1.61756741]
[1644659960373,0.241,2939.7,2939.0,1.44746342]
[1644659960572,0.29224,2939.7,2938.8,0.85086]
[1644659960774,0.29224,2939.7,2938.9,1.44746221]
[1644659961229,0.05124,2939.7,2938.9,1.44746221]
[1644659961425,0.05124,2939.7,2939.0,0.42542]
[1644659961628,0.001,2939.8,2939.1,4.58415811]
[1644659961828,0.001,2939.8,2939.2,1.44746221]
[1644659962027,0.001,2939.8,2939.2,2.29816221]
[1644659962230,0.001,2939.8,2939.3,1.44746221]
[1644659962828,0.001,2939.8,2939.2,0.85970728]
[1644659963029,0.001,2939.8,2939.2,1.02970728]
[1644659963228,0.001,2939.8,2939.2,1.0207]
[1644659963430,0.05224,2939.8,2939.4,0.00900704]
[1644659964429,0.05224,2939.8,2939.2,0.17]
[1644659964629,0.05224,2939.8,2939.5,0.00900698]
[1644659965692,0.05224,2939.8,2939.4,0.00204516]
[1644659965892,0.05224,2939.8,2939.5,0.00900692]
[1644659966693,0.05224,2939.8,2939.4,0.00204516]
[1644659967095,0.05224,2939.8,2939.5,0.00900692]
[1644659967894,0.05224,2939.8,2939.4,0.00204516]
[1644659968295,0.05224,2939.8,2939.5,0.00900692]
[1644659968497,0.001,2939.8,2939.5,0.00900692]
[1644659969123,0.001,2939.8,2939.4,0.00204516]
[1644659969321,0.001,2939.8,2939.5,0.00900692]
[1644659970329,0.001,2939.8,2939.4,0.00204516]
[1644659970521,0.001,2939.8,2939.7,0.00204655]
[1644659975484,0.001,2939.8,2939.7,0.02772192]
[1644659983826,0.001,2939.8,2939.7,0.0264044]
[1644659989575,0.492,2939.8,2939.7,0.0264044]
[1644659990377,1.492,2939.8,2939.7,0.0225464]
[1644659990577,0.492,2939.8,2939.7,0.0225464]
[1644659991424,0.001,2939.8,2939.7,0.0225464]
[1644659992522,0.001,2939.8,2939.7,0.1925464]
[1644659992720,0.001,2939.8,2939.7,3.379473]
[1644659993322,0.001,2939.8,2939.7,0.1925464]
[1644659994129,0.001,2939.8,2939.7,3.35767655]
[1644659994525,0.001,2939.8,2939.7,0.1925464]
[1644659994726,0.001,2939.8,2939.7,3.29123861]
[1644659994972,0.001,2939.8,2939.7,4.73839721]
[1644659995171,0.001,2939.8,2939.7,5.73839721]
[1644659995977,0.001,2939.8,2939.7,5.7616699]
[1644659997480,0.001,2939.8,2939.7,1.21581909]
[1644659997678,0.001,2939.8,2939.7,0.21581909]
[1644660000528,0.001,2939.8,2939.7,1.66300493]
[1644660000728,0.001,2939.8,2939.7,1.49300493]
[1644660000929,0.001,2939.8,2939.7,1.49305252]
[1644660002332,0.02655834,2939.8,2939.7,1.49305252]
[1644660002974,0.02655834,2939.8,2939.7,4.61438503]
[1644660003476,0.02655834,2939.8,2939.7,5.61438503]
[1644660003675,0.02655834,2939.8,2939.7,5.91438503]
[1644660003879,3.4,2939.9,2939.8,2.82793682]
[1644660004085,3.4,2939.9,2939.8,7.69780829]
[1644660004279,3.4,2939.9,2939.8,8.86780829]
[1644660005278,3.4,2939.9,2939.8,9.35880829]
[1644660005679,3.4,2939.9,2939.8,5.06780829]
[1644660006081,3.4,2939.9,2939.8,1.64517025]
[1644660006929,3.4,2939.9,2939.8,0.19793682]
[1644660007130,3.4,2939.9,2939.8,0.02793682]
[1644660009237,3.42900726,2939.9,2939.8,0.02793682]
[1644660009432,2.42900726,2939.9,2939.8,0.02793682]
[1644660010473,2.42900726,2939.9,2939.8,0.02885664]
[1644660010877,2.47961726,2939.9,2939.8,0.02885664]
[1644660011677,3.34442898,2939.9,2939.8,0.02885664]
[1644660011883,2.47961726,2939.9,2939.8,0.02885664]
[1644660013180,3.25,2939.8,2939.6,0.04643471]
[1644660013381,4.16720274,2939.7,2939.6,0.04643471]
[1644660013830,5.33200747,2939.7,2939.6,0.04643471]
[1644660014533,5.36101473,2939.7,2939.6,0.04643471]
[1644660015127,5.36101473,2939.7,2938.6,0.0035055]
[1644660015329,0.86480473,2939.6,2938.6,0.0035055]
[1644660015529,3.58705128,2939.5,2938.6,0.0035055]
[1644660015731,3.58705128,2939.5,2938.6,1.43982655]
[1644660015929,3.58705128,2939.5,2938.5,0.42551]
[1644660015930,3.58705128,2939.5,2938.7,1.43982655]
[1644660016136,4.43822128,2939.5,2938.8,1.43982655]
[1644660016433,4.43822128,2939.5,2938.6,0.0035055]
[1644660016434,5.0,2939.1,2938.6,0.0035055]
[1644660016631,4.39309725,2939.0,2938.6,0.0035055]
[1644660017035,4.69309725,2939.0,2938.6,0.0035055]
[1644660017236,0.89120724,2938.9,2938.6,0.0035055]
[1644660017479,3.34758808,2938.8,2938.7,0.00900795]
[1644660017678,3.64758808,2938.8,2938.7,0.00900795]
[1644660017882,3.69944808,2938.8,2938.7,0.00900795]
[1644660018483,3.69944808,2938.8,2938.6,0.0035055]
[1644660018685,3.50595238,2938.7,2938.6,0.01251351]
[1644660018881,3.50595238,2938.7,2938.6,0.00900801]
[1644660019687,3.50595238,2938.7,2938.5,0.1701]
[1644660019882,3.53495964,2938.7,2938.5,0.1701]
[1644660020483,0.02900726,2938.7,2938.5,0.1701]
[1644660021523,0.32900726,2938.7,2938.0,0.1736055]
[1644660021727,0.02900726,2938.7,2938.1,1.42267608]
[1644660021928,0.02900726,2938.7,2938.2,0.1736055]
[1644660022130,0.02900726,2938.7,2938.3,1.41917058]
[1644660022334,0.02900726,2938.7,2938.4,0.1701]
[1644660022729,0.02900726,2938.7,2938.5,1.41704196]
[1644660022928,0.02900726,2938.7,2938.6,1.41704196]
[1644660022929,3.42900726,2938.7,2938.6,1.41704196]
[1644660023128,3.42900726,2938.7,2938.4,1.41704196]
[1644660023342,3.42900726,2938.7,2938.5,3.6701]
[1644660023533,3.42900726,2938.7,2938.6,1.57969422]
[1644660023730,3.42900726,2938.7,2938.6,3.84079422]
[1644660023931,3.42900726,2938.7,2938.6,3.54079422]
[1644660023932,1.88502705,2938.7,2938.6,3.54079422]
[1644660024231,1.88502705,2938.7,2938.6,3.84079422]
[1644660025278,1.88502705,2938.7,2938.6,3.79079422]
[1644660025479,1.88502705,2938.7,2938.6,7.32651725]
[1644660025678,1.88502705,2938.7,2938.6,6.61386499]
[1644660026080,1.88502705,2938.7,2938.6,3.10724987]
[1644660026280,1.88502705,2938.7,2938.6,2.10724987]
[1644660026481,1.88502705,2938.7,2938.6,6.2109279]
[1644660026980,1.88502705,2938.7,2938.6,6.3032033]
[1644660027284,1.88502705,2938.7,2938.6,6.6032033]
[1644660027680,1.88502705,2938.7,2938.6,6.9032033]
[1644660028389,0.001,2939.6,2938.9,1.276158]
[1644660028741,0.07236524,2939.9,2939.0,5.40804196]
[1644660028932,0.07236524,2939.9,2939.1,2.26762375]
[1644660029131,0.07236524,2939.9,2939.2,1.41704196]
[1644660029335,0.07236524,2939.9,2939.3,1.58704196]
[1644660029533,0.07236524,2939.8,2939.4,1.90804196]
[1644660029735,0.001,2940.2,2939.4,0.49973143]
[1644660029736,0.07236524,2939.7,2939.4,0.49973143]
[1644660029937,0.00872956,2940.0,2939.5,3.5]
[1644660030148,0.00872956,2940.0,2939.6,5.12804079]
[1644660030340,0.00872956,2940.0,2939.7,1.55704079]
[1644660030536,0.001,2940.2,2939.8,5.37921371]
[1644660030736,0.00545674,2940.0,2939.8,4.29217292]
[1644660030937,0.00545674,2940.0,2939.9,4.34960496]
[1644660031138,0.00545674,2940.0,2939.9,6.22692554]
[1644660031737,0.001,2940.2,2939.9,1.87732058]
[1644660031938,0.00545682,2940.1,2939.9,0.491]
[1644660032138,0.07235557,2940.0,2939.7,3.59467444]
[1644660032339,0.07235557,2940.0,2939.7,3.60970136]
[1644660032780,0.07235557,2940.0,2939.8,1.0]
[1644660032974,0.07235557,2940.0,2939.9,3.11012726]
[1644660033176,0.00545682,2940.0,2939.9,3.11012726]
[1644660033475,0.00545682,2940.0,2939.9,1.0]
[1644660033674,0.00545682,2940.0,2939.7,3.9456889]
[1644660033675,0.00545682,2940.0,2939.8,1.0]
[1644660033878,0.07235557,2939.9,2939.8,1.0]
[1644660034080,0.07235557,2939.9,2939.8,4.15216049]
[1644660034281,0.66915408,2940.6,2939.8,4.15216049]
[1644660034481,0.00900528,2940.0,2939.8,4.15216049]
[1644660034685,0.07235557,2939.9,2939.8,4.15216049]
[1644660034980,0.07335557,2939.9,2939.8,1.0]
[1644660035179,0.07235557,2939.9,2939.8,1.0]
[1644660035386,0.07235557,2939.9,2939.7,1.72523]
[1644660036423,0.07235557,2939.9,2939.8,3.06798507]
[1644660036824,0.07235557,2939.9,2939.8,4.06798507]
[1644660038632,3.40900534,2940.0,2939.8,4.06798507]
[1644660038831,3.40900534,2940.0,2939.9,4.09194966]
[1644660039030,3.40900534,2940.0,2939.9,3.09194966]
[1644660039031,3.47235597,2940.0,2939.9,3.09194966]
[1644660039232,3.40900534,2940.0,2939.9,4.09194966]
[1644660039431,3.40900534,2940.0,2939.9,3.09194966]
[1644660039632,3.40900534,2940.0,2939.9,4.39194966]
[1644660039981,3.40900534,2940.0,2939.9,6.91534822]
[1644660040277,0.001,2940.6,2940.0,3.25]
[1644660040476,0.05124,2941.4,2940.0,3.25]
[1644660040477,0.03601239,2940.8,2940.3,0.8504058]
[1644660040684,0.0723481,2940.7,2940.1,5.26595458]
[1644660041678,0.67803979,2941.2,2940.1,5.26595458]
[1644660041679,0.00900467,2940.5,2940.1,5.26595458]
[1644660041878,0.0723481,2940.4,2940.1,4.66595458]
[1644660042082,0.0723481,2940.4,2940.1,4.17495458]
[1644660042883,0.0723481,2940.3,2940.1,4.17495458]
[1644660043084,0.0723481,2940.3,2940.2,3.08905228]
[1644660043286,0.0723481,2940.3,2940.2,4.08905228]
[1644660043583,0.0723481,2940.3,2940.2,1.0]
[1644660043831,0.0723481,2940.3,2940.2,3.09210117]
[1644660044029,0.00900485,2940.4,2940.2,2.68289106]
[1644660045030,0.67903979,2941.2,2940.4,0.03065235]
[1644660045232,0.03601378,2940.9,2940.4,0.03065235]
[1644660045435,3.36934765,2940.4,2940.0,3.1706]
[1644660045632,3.36934765,2940.4,2939.9,1.36288949]
[1644660045633,0.001,2940.3,2939.9,0.13819997]
[1644660045837,0.001,2940.3,2939.9,1.13819997]
[1644660046031,0.001,2940.3,2939.9,0.13819997]
[1644660046432,0.00900504,2940.2,2939.9,0.13819997]
[1644660047036,0.7415956,2940.2,2939.9,0.13819997]
[1644660047480,0.73259056,2940.2,2939.9,0.13819997]
[1644660047679,0.0090051,2940.2,2939.9,0.13819997]
[1644660048687,0.001,2940.3,2939.9,0.13819997]
[1644660048886,0.0090051,2940.2,2939.9,0.13819997]
[1644660049887,0.001,2940.3,2939.9,0.13819997]
[1644660050088,0.00545159,2940.2,2939.9,0.13819997]
[1644660050888,0.02856124,2940.3,2939.9,0.13819997]
[1644660051327,0.00545159,2940.2,2939.9,0.13819997]
[1644660051925,0.00545159,2940.2,2939.9,3.31176509]
[1644660052157,0.02856124,2940.3,2939.9,3.31176509]
[1644660052335,0.02856124,2940.3,2940.0,1.0]
[1644660052531,0.00545159,2940.2,2940.0,1.0]
[1644660052732,0.00545159,2940.2,2940.1,3.19551282]
[1644660052934,0.00545159,2940.2,2940.1,4.19551282]
[1644660053333,0.02856124,2940.3,2940.1,1.0]
[1644660053535,0.03756036,2940.3,2940.1,1.0]
[1644660053740,0.03756036,2940.3,2940.0,1.0]
[1644660054534,0.02856124,2940.3,2940.0,1.0]
[1644660054977,0.03756036,2940.3,2940.1,3.08814199]
[1644660055375,0.03756036,2940.3,2940.2,1.0]
[1644660055775,0.02856124,2940.3,2940.2,1.0]
[1644660057477,0.02856124,2940.3,2940.2,4.0782065]
[1644660057679,0.02856124,2940.3,2940.1,0.6]
[1644660057878,0.02856124,2940.3,2940.2,0.3]
[1644660058177,0.02856124,2940.3,2940.1,1.3]
[1644660058178,0.02856124,2940.3,2940.1,1.0]
[1644660058378,0.0375603,2940.3,2940.1,1.0]
[1644660059332,0.02856124,2940.3,2940.1,1.0]
[1644660059732,0.0375603,2940.3,2940.1,3.08806027]
[1644660059932,0.0375603,2940.3,2940.2,1.0]
[1644660060331,0.0375603,2940.3,2940.2,1.3]
[1644660060533,0.02856124,2940.3,2940.2,1.3]
[1644660061732,0.02856124,2940.3,2940.2,4.58789592]
[1644660061931,0.02856124,2940.3,2940.2,0.3]
[1644660062133,0.02856124,2940.3,2940.2,1.3]
[1644660062336,0.02856124,2940.3,2940.2,4.591]
[1644660062337,0.001,2940.3,2940.2,4.591]
[1644660062582,0.001,2940.3,2940.2,1.091]
[1644660062782,0.03599061,2940.8,2940.3,2.1]
[1644660063082,0.05124,2941.2,2940.4,0.83114]
[1644660063283,0.03599061,2940.8,2940.5,0.8503353]
[1644660063683,0.03599061,2940.8,2940.6,0.491]
[1644660064090,0.03599061,2940.8,2940.6,0.791]
[1644660064287,0.05124,2941.4,2940.6,0.791]
[1644660064788,0.91604473,2941.4,2940.6,1.0]
[1644660065089,0.00392786,2941.3,2940.6,1.0]
[1644660065287,0.05124,2941.2,2940.6,1.0]
[1644660066088,0.05124,2941.2,2940.7,3.07216924]
[1644660066333,0.05124,2941.2,2940.8,1.0]
[1644660066532,0.05124,2941.2,2940.7,3.07216924]
[1644660066750,0.00392786,2941.3,2940.4,3.58829193]
[1644660066938,0.00899816,2941.1,2940.4,3.58829193]
[1644660067139,0.00899816,2941.1,2940.5,1.0]
[1644660067841,0.00899816,2941.1,2940.6,3.06526482]
[1644660067842,0.00392786,2941.1,2940.6,3.06526482]
[1644660068040,0.00899834,2940.9,2940.6,3.10020148]
[1644660068247,0.00899834,2940.9,2940.5,1.0]
[1644660069142,0.00492786,2941.2,2940.5,1.0]
[1644660069346,0.0054507,2940.8,2940.5,1.0]
[1644660069743,0.0054507,2940.8,2940.4,3.56425894]
[1644660070176,0.05124,2941.1,2940.4,3.56425894]
[1644660070376,0.00900444,2940.7,2940.4,3.56425894]
[1644660071179,0.00900444,2940.7,2940.5,1.0]
[1644660071377,0.05124,2941.1,2940.5,1.0]
[1644660071578,0.0090045,2940.7,2940.5,1.0]
[1644660071882,0.0102445,2941.1,2940.5,1.0]
[1644660072080,0.86973259,2941.2,2940.5,1.0]
[1644660072378,0.86480473,2941.1,2940.5,1.0]
[1644660072579,0.81480473,2941.1,2940.5,1.0]
[1644660072777,0.81480473,2941.1,2940.6,3.09075548]
[1644660072977,0.00392786,2941.2,2940.5,1.0]
[1644660073176,0.00492786,2941.3,2940.4,0.34014]
[1644660074832,1.30371026,2941.3,2940.4,0.34014]
[1644660075034,0.001,2941.2,2940.4,0.34014]
[1644660075234,0.00900413,2941.0,2940.6,0.02678386]
[1644660076236,0.001,2941.2,2940.6,0.02678386]
[1644660076435,0.00900419,2940.9,2940.6,0.02678386]
[1644660077486,1.2987824,2941.0,2940.6,0.02678386]
[1644660077683,0.301,2941.2,2940.6,0.02678386]
[1644660077684,1.30878665,2940.9,2940.6,0.02678386]
[1644660077881,0.001,2940.8,2940.6,0.02678386]
[1644660078585,1.2997824,2940.8,2940.6,0.02678386]
[1644660078785,0.001,2940.7,2940.6,0.02678386]
[1644660079184,0.001,2940.7,2940.6,0.02099386]
[1644660079984,3.401,2940.7,2940.4,0.00900558]
[1644660080184,0.001,2940.6,2940.4,0.00900558]
[1644660080388,0.001,2940.6,2939.6,3.40721]
[1644660080389,2.27,2940.5,2939.6,3.40721]
[1644660080584,0.64905339,2940.1,2939.7,1.37707981]
[1644660081333,1.41104347,2940.1,2939.7,1.37707981]
[1644660081532,0.07236135,2940.0,2939.7,1.37707981]
[1644660082138,0.72141474,2940.0,2939.7,1.37707981]
[1644660082732,0.07236135,2940.0,2939.7,1.37707981]
[1644660082938,0.64905339,2940.1,2939.8,3.3516028]
[1644660083239,0.07236135,2940.0,2939.9,1.67647107]
[1644660083437,0.07236135,2940.0,2939.9,7.21954003]
[1644660083836,0.64905339,2940.6,2939.9,7.21954003]
[1644660084035,0.64905339,2940.6,2940.0,1.37647107]
[1644660084236,0.72141474,2940.6,2940.1,3.94297752]
[1644660084435,0.07236135,2940.5,2940.2,2.37647107]
[1644660084641,0.72141474,2940.6,2940.2,1.0]
[1644660084837,0.07236135,2940.5,2940.2,1.0]
[1644660085081,0.07236135,2940.4,2940.3,4.4607558]
[1644660085284,0.07236135,2940.5,2940.3,5.4607558]
[1644660085481,0.65805752,2940.7,2940.4,3.12209835]
[1644660085683,0.65805752,2940.7,2940.4,1.0]
[1644660085684,0.07234781,2940.6,2940.4,1.0]
[1644660085984,0.07234781,2940.6,2940.3,1.3]
[1644660086283,0.07234781,2940.5,2940.3,1.30900586]
[1644660086484,0.07234781,2940.6,2940.3,1.30900586]
[1644660086684,0.07234781,2940.5,2940.3,1.30900586]
[1644660086884,0.07234781,2940.4,2940.3,1.30900586]
[1644660087083,0.07234781,2940.4,2940.3,1.3]
[1644660087289,0.65805761,2940.7,2940.3,1.68512907]
[1644660087487,0.07234781,2940.6,2940.3,0.30900558]
[1644660087684,0.07234781,2940.6,2940.3,1.00900558]
[1644660087885,0.7214012,2940.6,2940.3,1.00900558]
[1644660088286,0.7214012,2940.6,2940.3,1.0]
[1644660088486,0.07234781,2940.5,2940.3,1.00900567]
[1644660088750,0.07234781,2940.4,2940.3,0.00900567]
[1644660088947,0.00900431,2940.7,2940.3,0.00900567]
[1644660088948,0.86546778,2940.5,2940.3,0.00900567]
[1644660089145,0.00900431,2940.7,2940.3,0.00900567]
[1644660089146,0.93781559,2940.4,2940.3,0.00900567]
[1644660089344,0.07234781,2940.4,2940.3,0.00900567]
[1644660089544,0.24234781,2940.4,2940.1,0.17]
[1644660089744,0.86538348,2940.2,2940.1,0.17]
[1644660090144,1.03538348,2940.2,2940.1,0.17]
[1644660090343,1.10773129,2940.2,2940.1,0.17]
[1644660090543,0.93773129,2940.2,2940.1,0.17]
[1644660090947,0.07234781,2940.2,2940.1,0.17]
[1644660091945,0.93773129,2940.3,2940.1,0.17]
[1644660092145,0.07234781,2940.2,2940.1,0.17]
[1644660092583,4.28047139,2940.4,2940.1,0.17]
[1644660092584,0.07234781,2940.3,2940.1,0.17]
[1644660092778,0.07234781,2940.2,2940.1,0.17]
[1644660093281,0.07234781,2940.2,2940.1,0.17845687]
[1644660093482,0.07234781,2940.3,2940.1,0.17845687]
[1644660093886,0.17,2940.2,2940.1,0.17845687]
[1644660094086,0.07234781,2940.2,2940.1,0.17845687]
[1644660094386,0.07234781,2940.2,2940.1,0.17]
[1644660094884,0.03113304,2940.2,2940.1,0.17]
[1644660095092,0.10348085,2940.2,2940.1,0.17]
[1644660095292,0.10348085,2940.2,2940.1,1.37026338]
[1644660095485,0.10348085,2940.2,2940.1,3.07445355]
[1644660095687,0.10348085,2940.2,2940.0,1.37026338]
[1644660095886,0.10348085,2940.2,2940.0,1.3787203]
[1644660096086,0.67957381,2940.2,2940.0,0.00845692]
[1644660096334,0.07234781,2940.1,2940.0,0.00845692]
[1644660096731,0.72078858,2940.1,2939.7,0.51034]
[1644660096937,0.70068934,2939.9,2939.7,0.51034]
[1644660097136,0.07234781,2939.8,2939.7,0.51034]
[1644660097562,0.07234781,2939.8,2939.4,0.17]
[1644660097745,0.07234781,2939.8,2939.5,1.37048867]
[1644660098337,0.07234781,2939.8,2939.5,1.37898321]
[1644660098539,0.07234781,2939.8,2939.5,0.00849454]
[1644660099138,0.07234781,2939.8,2939.3,2.4113055]
[1644660099339,0.07234781,2939.8,2939.4,1.37008878]
[1644660099544,0.07234781,2939.8,2939.5,0.00849449]
[1644660100486,0.07234781,2939.8,2939.3,1.17265606]
[1644660100686,0.07234781,2939.8,2939.5,0.0084914]
[1644660101585,0.07234781,2939.8,2939.3,0.17265606]
[1644660101586,0.3,2939.7,2939.3,0.17265606]
[1644660101786,0.64771039,2939.4,2939.3,0.17265606]
[1644660101984,0.64771039,2939.4,2939.3,0.17]
[1644660102385,0.07234781,2939.6,2939.3,0.17]
[1644660102684,1.78887129,2939.6,2939.3,0.17]
[1644660102886,3.25,2939.3,2938.9,0.00265606]
[1644660103106,0.64769329,2939.0,2938.9,0.00265606]
[1644660103291,0.07234781,2939.0,2938.4,0.00265606]
[1644660103743,0.07234781,2939.1,2938.4,1.34308431]
[1644660103938,0.7200411,2939.1,2938.2,0.00265606]
[1644660104138,0.7200411,2939.0,2938.2,1.34303084]
[1644660104338,0.07234781,2938.9,2938.6,0.00900257]
[1644660104538,0.1701,2939.2,2938.6,0.00900257]
[1644660104539,0.07234781,2938.8,2938.6,0.00900257]
[1644660104741,0.07234781,2938.7,2938.6,0.00900257]
[1644660105138,0.07234781,2938.7,2938.3,0.00265606]
[1644660105346,0.07234781,2938.7,2938.4,0.2553]
[1644660105538,0.07234781,2938.7,2938.5,0.00900263]
[1644660105743,0.07234781,2939.1,2938.5,0.00900263]
[1644660105939,0.09526763,2939.0,2938.5,0.01165869]
[1644660106146,0.09526763,2938.9,2938.5,0.01165869]
[1644660106340,0.82930385,2938.8,2938.5,0.00265606]
[1644660106538,0.09526763,2938.7,2938.5,0.00265606]
[1644660106741,0.09526763,2938.7,2938.6,0.00900251]
[1644660107579,0.09526763,2938.7,2938.3,0.00265606]
[1644660107981,0.09526763,2938.7,2938.5,0.00837606]
[1644660108784,0.09526763,2938.7,2938.3,0.00265606]